[Event "Titled Tuesday Blitz March 08 Early 2022"]
[White "Carre, Sylvain"]
[Black "Aradhya, Garg"]
[WhiteFideId "642118"]
[BlackFideId "25006746"]
[WhiteElo "2105"]
[BlackElo "2169"]
[Result "0-1"]
[Round "01"]
[TimeControl "180+1"]
[Date "2022.03.09"]
[WhiteClock "0:00:03"]
[BlackClock "0:00:12"]

1. d4 {[%clk 0:02:59]}  d5 {[%clk 0:02:59]} 2. Bf4 {[%clk 0:02:59]}  Nf6 {[%clk 0:02:57]} 3. e3 {[%clk 0:02:59]}  c5 {[%clk 0:02:58]} 4. c3 {[%clk 0:02:52]}  Qb6 {[%clk 0:02:57]} 5. Qb3 {[%clk 0:02:51]}  c4 {[%clk 0:02:56]} 6. Qxb6 {[%clk 0:02:51]}  axb6 {[%clk 0:02:56]} 7. a3 {[%clk 0:02:52]}  Nc6 {[%clk 0:02:55]} 8. Nd2 {[%clk 0:02:52]}  Bf5 {[%clk 0:02:54]} 9. Ngf3 {[%clk 0:02:51]}  h6 {[%clk 0:02:54]} 10. h3 {[%clk 0:02:50]}  e6 {[%clk 0:02:54]} 11. Be2 {[%clk 0:02:50]}  Be7 {[%clk 0:02:53]} 12. O-O {[%clk 0:02:50]}  b5 {[%clk 0:02:52]} 13. Ne5 {[%clk 0:02:46]}  Nd7 {[%clk 0:02:52]} 14. Nxd7 {[%clk 0:02:43]}  Kxd7 {[%clk 0:02:52]} 15. Bf3 {[%clk 0:02:43]}  Bd6 {[%clk 0:02:50]} 16. Bxd6 {[%clk 0:02:39]}  Kxd6 {[%clk 0:02:50]} 17. e4 {[%clk 0:02:40]}  Bg6 {[%clk 0:02:51]} 18. exd5 {[%clk 0:02:34]}  exd5 {[%clk 0:02:52]} 19. Rfe1 {[%clk 0:02:33]}  Rhe8 {[%clk 0:02:48]} 20. Nf1 {[%clk 0:02:30]}  Ne7 {[%clk 0:01:04]} 21. Re5 {[%clk 0:02:20]}  f6 {[%clk 0:01:03]} 22. Ree1 {[%clk 0:02:16]}  Nf5 {[%clk 0:01:00]} 23. g4 {[%clk 0:02:03]}  Nh4 {[%clk 0:00:59]} 24. Bh1 {[%clk 0:01:59]}  Be4 {[%clk 0:00:50]} 25. Nd2 {[%clk 0:01:48]}  f5 {[%clk 0:00:35]} 26. f3 {[%clk 0:01:36]}  Bd3 {[%clk 0:00:34]} 27. Kf2 {[%clk 0:01:28]}  f4 {[%clk 0:00:34]} 28. Bg2 {[%clk 0:01:19]}  Re3 {[%clk 0:00:29]} 29. Nf1 {[%clk 0:00:33]}  Bxf1 {[%clk 0:00:22]} 30. Rxf1 {[%clk 0:00:21]}  Rae8 {[%clk 0:00:21]} 31. Kg1 {[%clk 0:00:20]}  Re2 {[%clk 0:00:17]} 32. Rf2 {[%clk 0:00:19]}  g5 {[%clk 0:00:17]} 33. Raf1 {[%clk 0:00:16]}  R2e3 {[%clk 0:00:17]} 34. Rd1 {[%clk 0:00:16]}  Kc6 {[%clk 0:00:17]} 35. Kf1 {[%clk 0:00:13]}  Kb6 {[%clk 0:00:16]} 36. Rb1 {[%clk 0:00:12]}  Ka5 {[%clk 0:00:16]} 37. Rd1 {[%clk 0:00:12]}  Ka4 {[%clk 0:00:16]} 38. Kg1 {[%clk 0:00:11]}  Kb3 {[%clk 0:00:14]} 39. Rdd2 {[%clk 0:00:07]}  Rd3 {[%clk 0:00:12]} 40. Rxd3 {[%clk 0:00:03]}  cxd3 {[%clk 0:00:13]} 41. Bf1 {[%clk 0:00:04]}  Re1 {[%clk 0:00:12]} 42. Kh2 {[%clk 0:00:03]}  d2 {[%clk 0:00:12]} 43. Rxd2 {[%clk 0:00:02]}  Rxf1 {[%clk 0:00:12]} 44. Re2 {[%clk 0:00:03]}  Rxf3 {[%clk 0:00:11]} 45. Re6 {[%clk 0:00:03]}  Rf2+ {[%clk 0:00:12]} 46. Kg1 {[%clk 0:00:03]}  Rxb2 {[%clk 0:00:12]} 47. Rxh6 {[%clk 0:00:03]}  Nf3+ {[%clk 0:00:12]} 48. Kf1 {[%clk 0:00:03]}  Kxc3 {[%clk 0:00:13]} 49. h4 {[%clk 0:00:03]}  gxh4 {[%clk 0:00:11]} 50. Rh5 {[%clk 0:00:03]}  Kxd4 {[%clk 0:00:11]} 51. g5 {[%clk 0:00:03]}  Ne5 {[%clk 0:00:11]} 52. Rxh4 {[%clk 0:00:02]}  Ke3 {[%clk 0:00:11]} 53. Rh3+ {[%clk 0:00:03]}  f3 {[%clk 0:00:12]} 54. g6 {[%clk 0:00:03]}  Rb1# {[%clk 0:00:12]} 0-1


[Site "https://www.chess.com"]

[Event "Titled Tuesday Blitz March 08 Early 2022"]
[White "Chigaev, Maksim"]
[Black "Dixit, Nikhil"]
[WhiteFideId "4108116"]
[BlackFideId "5059534"]
[WhiteElo "2502"]
[BlackElo "2223"]
[Result "1-0"]
[Round "01"]
[TimeControl "180+1"]
[Date "2022.03.08"]
[WhiteClock "0:00:26"]
[BlackClock "0:00:07"]

1. e4 {[%clk 0:02:54]}  g6 {[%clk 0:02:56]} 2. d4 {[%clk 0:02:54]}  Bg7 {[%clk 0:02:42]} 3. Nc3 {[%clk 0:02:52]}  c6 {[%clk 0:02:37]} 4. h3 {[%clk 0:02:49]}  d6 {[%clk 0:02:31]} 5. Nf3 {[%clk 0:02:48]}  Nf6 {[%clk 0:02:29]} 6. Be2 {[%clk 0:02:46]}  O-O {[%clk 0:02:29]} 7. O-O {[%clk 0:02:47]}  Qc7 {[%clk 0:02:23]} 8. a4 {[%clk 0:02:45]}  e5 {[%clk 0:02:18]} 9. Be3 {[%clk 0:02:40]}  exd4 {[%clk 0:02:16]} 10. Bxd4 {[%clk 0:02:37]}  Re8 {[%clk 0:02:16]} 11. Bd3 {[%clk 0:02:37]}  Nbd7 {[%clk 0:02:15]} 12. Re1 {[%clk 0:02:36]}  Ne5 {[%clk 0:02:12]} 13. Bf1 {[%clk 0:02:36]}  Nh5 {[%clk 0:02:03]} 14. Be3 {[%clk 0:02:33]}  h6 {[%clk 0:01:56]} 15. Nd4 {[%clk 0:02:25]}  Nf6 {[%clk 0:01:33]} 16. Qd2 {[%clk 0:02:07]}  Kh7 {[%clk 0:01:30]} 17. f4 {[%clk 0:02:03]}  Ned7 {[%clk 0:01:28]} 18. Bf2 {[%clk 0:02:01]}  a6 {[%clk 0:01:18]} 19. g4 {[%clk 0:01:56]}  c5 {[%clk 0:01:16]} 20. Nf3 {[%clk 0:01:46]}  b6 {[%clk 0:01:14]} 21. Rad1 {[%clk 0:01:33]}  d5 {[%clk 0:01:01]} 22. exd5 {[%clk 0:01:04]}  Rxe1 {[%clk 0:00:59]} 23. Rxe1 {[%clk 0:01:05]}  Bb7 {[%clk 0:00:58]} 24. Bg2 {[%clk 0:01:05]}  Qd6 {[%clk 0:00:49]} 25. Ne5 {[%clk 0:01:04]}  Re8 {[%clk 0:00:41]} 26. Nxf7 {[%clk 0:00:49]}  Rxe1+ {[%clk 0:00:40]} 27. Bxe1 {[%clk 0:00:50]}  Qf8 {[%clk 0:00:33]} 28. Ne5 {[%clk 0:00:49]}  Nxe5 {[%clk 0:00:32]} 29. fxe5 {[%clk 0:00:49]}  Nd7 {[%clk 0:00:28]} 30. e6 {[%clk 0:00:49]}  Ne5 {[%clk 0:00:25]} 31. Qe2 {[%clk 0:00:45]}  Qf4 {[%clk 0:00:22]} 32. Bd2 {[%clk 0:00:39]}  Qd4+ {[%clk 0:00:21]} 33. Be3 {[%clk 0:00:39]}  Qb4 {[%clk 0:00:21]} 34. e7 {[%clk 0:00:39]}  Qxb2 {[%clk 0:00:18]} 35. Nd1 {[%clk 0:00:36]}  Qa1 {[%clk 0:00:17]} 36. e8=Q {[%clk 0:00:36]}  b5 {[%clk 0:00:10]} 37. axb5 {[%clk 0:00:34]}  axb5 {[%clk 0:00:11]} 38. Qe7 {[%clk 0:00:28]}  Ba8 {[%clk 0:00:07]} 39. Bxh6 {[%clk 0:00:26]}  Kxh6 {[%clk 0:00:07]} 40. Qh4# {[%clk 0:00:26]} 1-0


[Site "https://www.chess.com"]

[Event "Titled Tuesday Blitz March 08 Early 2022"]
[White "De Souza, Cristiano Gomes"]
[Black "Skliarov, Viktor"]
[WhiteFideId "2151758"]
[BlackFideId "14106736"]
[WhiteElo "2068"]
[BlackElo "2229"]
[Result "0-1"]
[Round "01"]
[TimeControl "180+1"]
[Date "2022.03.09"]
[WhiteClock "0:01:51"]
[BlackClock "0:01:26"]

1. d4 {[%clk 0:02:54]}  Nf6 {[%clk 0:02:59]} 2. c4 {[%clk 0:02:54]}  e6 {[%clk 0:03:00]} 3. Nf3 {[%clk 0:02:54]}  b6 {[%clk 0:03:00]} 4. g3 {[%clk 0:02:54]}  Bb7 {[%clk 0:03:00]} 5. Bg2 {[%clk 0:02:54]}  Be7 {[%clk 0:03:01]} 6. O-O {[%clk 0:02:54]}  O-O {[%clk 0:03:01]} 7. Nc3 {[%clk 0:02:54]}  Ne4 {[%clk 0:03:02]} 8. Qc2 {[%clk 0:02:54]}  f5 {[%clk 0:03:01]} 9. b3 {[%clk 0:02:54]}  Nxc3 {[%clk 0:02:59]} 10. Qxc3 {[%clk 0:02:54]}  Bf6 {[%clk 0:02:59]} 11. Bb2 {[%clk 0:02:54]}  c5 {[%clk 0:02:59]} 12. Qd2 {[%clk 0:02:54]}  Nc6 {[%clk 0:02:49]} 13. d5 {[%clk 0:02:42]}  Na5 {[%clk 0:02:41]} 14. Bxf6 {[%clk 0:02:39]}  Qxf6 {[%clk 0:02:39]} 15. dxe6 {[%clk 0:02:38]}  dxe6 {[%clk 0:02:39]} 16. Rad1 {[%clk 0:02:39]}  Rad8 {[%clk 0:02:37]} 17. Qf4 {[%clk 0:02:37]}  Rxd1 {[%clk 0:02:26]} 18. Rxd1 {[%clk 0:02:37]}  Rd8 {[%clk 0:02:27]} 19. Rxd8+ {[%clk 0:02:34]}  Qxd8 {[%clk 0:02:28]} 20. Qe5 {[%clk 0:02:34]}  Kf7 {[%clk 0:01:51]} 21. h4 {[%clk 0:02:27]}  h6 {[%clk 0:01:52]} 22. e3 {[%clk 0:02:20]}  Qd1+ {[%clk 0:01:38]} 23. Kh2 {[%clk 0:02:08]}  Bxf3 {[%clk 0:01:37]} 24. Qc7+ {[%clk 0:02:08]}  Kg6 {[%clk 0:01:37]} 25. Qxa7 {[%clk 0:02:05]}  Bxg2 {[%clk 0:01:25]} 26. Kxg2 {[%clk 0:02:03]}  Qd6 {[%clk 0:01:26]} 27. Qa8 {[%clk 0:01:52]}  Qc6+ {[%clk 0:01:25]} 28. Qxc6 {[%clk 0:01:51]}  Nxc6 {[%clk 0:01:26]} 0-1


[Site "https://www.chess.com"]

[Event "Titled Tuesday Blitz March 08 Early 2022"]
[White "Dejmek, Mark"]
[Black "Vlassov, Nikolai"]
[WhiteFideId "2017628"]
[BlackFideId "4103360"]
[WhiteElo "2255"]
[BlackElo "2407"]
[Result "0-1"]
[Round "01"]
[TimeControl "180+1"]
[Date "2022.03.09"]
[WhiteClock "0:00:05"]
[BlackClock "0:00:19"]

1. Nf3 {[%clk 0:02:59]}  Nf6 {[%clk 0:02:58]} 2. g3 {[%clk 0:02:58]}  g6 {[%clk 0:02:58]} 3. b4 {[%clk 0:02:58]}  Bg7 {[%clk 0:02:58]} 4. Bb2 {[%clk 0:02:59]}  O-O {[%clk 0:02:58]} 5. Bg2 {[%clk 0:02:58]}  d6 {[%clk 0:02:50]} 6. O-O {[%clk 0:02:54]}  e5 {[%clk 0:02:50]} 7. d3 {[%clk 0:02:53]}  Nc6 {[%clk 0:02:46]} 8. b5 {[%clk 0:02:48]}  Ne7 {[%clk 0:02:47]} 9. c4 {[%clk 0:02:47]}  Nh5 {[%clk 0:02:39]} 10. Nc3 {[%clk 0:02:40]}  f5 {[%clk 0:02:39]} 11. Nd2 {[%clk 0:02:38]}  c6 {[%clk 0:02:33]} 12. a4 {[%clk 0:02:37]}  Be6 {[%clk 0:02:32]} 13. a5 {[%clk 0:02:33]}  a6 {[%clk 0:02:32]} 14. bxc6 {[%clk 0:02:22]}  bxc6 {[%clk 0:02:32]} 15. Qa4 {[%clk 0:01:52]}  d5 {[%clk 0:02:31]} 16. f4 {[%clk 0:01:20]}  e4 {[%clk 0:02:25]} 17. Nd1 {[%clk 0:01:09]}  Bxb2 {[%clk 0:02:11]} 18. Nxb2 {[%clk 0:01:09]}  Nf6 {[%clk 0:02:01]} 19. Nb3 {[%clk 0:01:05]}  Rb8 {[%clk 0:01:54]} 20. Nd1 {[%clk 0:00:56]}  Qd6 {[%clk 0:01:46]} 21. c5 {[%clk 0:00:35]}  Qc7 {[%clk 0:01:46]} 22. d4 {[%clk 0:00:33]}  Rb7 {[%clk 0:01:41]} 23. e3 {[%clk 0:00:23]}  Rfb8 {[%clk 0:01:41]} 24. Nc1 {[%clk 0:00:24]}  Rb4 {[%clk 0:01:38]} 25. Qa2 {[%clk 0:00:23]}  Qb7 {[%clk 0:01:37]} 26. Ne2 {[%clk 0:00:21]}  Qb5 {[%clk 0:01:32]} 27. Nec3 {[%clk 0:00:17]}  Qc4 {[%clk 0:01:30]} 28. h3 {[%clk 0:00:12]}  Rb3 {[%clk 0:01:20]} 29. Qd2 {[%clk 0:00:05]}  Nc8 {[%clk 0:01:12]} 30. Rf2 {[%clk 0:00:05]}  Qb4 {[%clk 0:01:05]} 31. Bf1 {[%clk 0:00:05]}  Qb7 {[%clk 0:01:03]} 32. Kh2 {[%clk 0:00:03]}  Na7 {[%clk 0:01:03]} 33. Be2 {[%clk 0:00:03]}  Kf7 {[%clk 0:00:58]} 34. Rg2 {[%clk 0:00:02]}  h5 {[%clk 0:00:58]} 35. g4 {[%clk 0:00:03]}  hxg4 {[%clk 0:00:57]} 36. hxg4 {[%clk 0:00:03]}  fxg4 {[%clk 0:00:55]} 37. Kg3 {[%clk 0:00:04]}  Rh8 {[%clk 0:00:55]} 38. Nf2 {[%clk 0:00:04]}  Rb2 {[%clk 0:00:54]} 39. Rb1 {[%clk 0:00:04]}  Rxb1 {[%clk 0:00:51]} 40. Nxb1 {[%clk 0:00:04]}  Qxb1 {[%clk 0:00:51]} 41. Nxg4 {[%clk 0:00:05]}  Nxg4 {[%clk 0:00:47]} 42. Bxg4 {[%clk 0:00:06]}  Bxg4 {[%clk 0:00:47]} 43. Kxg4 {[%clk 0:00:06]}  Nb5 {[%clk 0:00:46]} 44. f5 {[%clk 0:00:07]}  gxf5+ {[%clk 0:00:34]} 45. Kxf5 {[%clk 0:00:07]}  Qh1 {[%clk 0:00:33]} 46. Qf2 {[%clk 0:00:06]}  Ke8 {[%clk 0:00:25]} 47. Ke5 {[%clk 0:00:06]}  Qh5+ {[%clk 0:00:21]} 48. Qf5 {[%clk 0:00:06]}  Qxf5+ {[%clk 0:00:19]} 49. Kxf5 {[%clk 0:00:07]}  Rh6 {[%clk 0:00:19]} 50. Rg7 {[%clk 0:00:06]}  Kd8 {[%clk 0:00:18]} 51. Rb7 {[%clk 0:00:06]}  Nc7 {[%clk 0:00:18]} 52. Ra7 {[%clk 0:00:04]}  Kd7 {[%clk 0:00:18]} 53. Ke5 {[%clk 0:00:05]}  Rh3 {[%clk 0:00:18]} 54. Kf4 {[%clk 0:00:04]}  Rf3+ {[%clk 0:00:18]} 55. Kg4 {[%clk 0:00:05]}  Rxe3 {[%clk 0:00:19]} 0-1


[Site "https://www.chess.com"]

[Event "Titled Tuesday Blitz March 08 Early 2022"]
[White "Delorme, Alban"]
[Black "Taboas Rodriguez, Daniel"]
[WhiteFideId "623636"]
[BlackFideId "2208466"]
[WhiteElo "2197"]
[BlackElo "2429"]
[Result "0-1"]
[Round "01"]
[TimeControl "180+1"]
[Date "2022.03.09"]
[WhiteClock "0:00:01"]
[BlackClock "0:01:31"]

1. e4 {[%clk 0:02:56]}  e6 {[%clk 0:02:59]} 2. d4 {[%clk 0:02:56]}  d5 {[%clk 0:03:00]} 3. Nc3 {[%clk 0:02:56]}  Nc6 {[%clk 0:03:01]} 4. exd5 {[%clk 0:02:54]}  exd5 {[%clk 0:03:01]} 5. Nf3 {[%clk 0:02:52]}  Nf6 {[%clk 0:02:55]} 6. Bb5 {[%clk 0:02:48]}  Bd7 {[%clk 0:02:55]} 7. O-O {[%clk 0:02:48]}  Be7 {[%clk 0:02:55]} 8. Re1 {[%clk 0:02:43]}  O-O {[%clk 0:02:55]} 9. Bxc6 {[%clk 0:02:43]}  Bxc6 {[%clk 0:02:54]} 10. Ne5 {[%clk 0:02:43]}  Be8 {[%clk 0:02:51]} 11. Bf4 {[%clk 0:02:37]}  c6 {[%clk 0:02:51]} 12. Ne2 {[%clk 0:02:34]}  Nd7 {[%clk 0:02:51]} 13. Ng3 {[%clk 0:02:32]}  Nxe5 {[%clk 0:02:50]} 14. Bxe5 {[%clk 0:02:32]}  Bd7 {[%clk 0:02:47]} 15. Qd2 {[%clk 0:02:29]}  Re8 {[%clk 0:02:35]} 16. c3 {[%clk 0:02:26]}  f6 {[%clk 0:02:34]} 17. Bf4 {[%clk 0:02:23]}  Bf8 {[%clk 0:02:35]} 18. Rxe8 {[%clk 0:02:22]}  Qxe8 {[%clk 0:02:36]} 19. Re1 {[%clk 0:02:22]}  Qg6 {[%clk 0:02:32]} 20. h4 {[%clk 0:02:05]}  Re8 {[%clk 0:02:31]} 21. h5 {[%clk 0:02:02]}  Rxe1+ {[%clk 0:02:31]} 22. Qxe1 {[%clk 0:02:02]}  Qe8 {[%clk 0:02:32]} 23. Kf1 {[%clk 0:01:53]}  Kf7 {[%clk 0:02:28]} 24. Qxe8+ {[%clk 0:01:52]}  Bxe8 {[%clk 0:02:27]} 25. Ke2 {[%clk 0:01:23]}  Ke6 {[%clk 0:02:27]} 26. f3 {[%clk 0:01:20]}  Be7 {[%clk 0:02:24]} 27. Ke3 {[%clk 0:01:13]}  f5 {[%clk 0:02:24]} 28. Be5 {[%clk 0:01:10]}  Bh4 {[%clk 0:02:14]} 29. Ne2 {[%clk 0:01:00]}  Bf6 {[%clk 0:02:03]} 30. Bxf6 {[%clk 0:00:54]}  Kxf6 {[%clk 0:02:03]} 31. Nf4 {[%clk 0:00:45]}  Bf7 {[%clk 0:02:00]} 32. g4 {[%clk 0:00:40]}  Kg5 {[%clk 0:01:58]} 33. Nh3+ {[%clk 0:00:29]}  Kh4 {[%clk 0:01:54]} 34. Nf2 {[%clk 0:00:29]}  Kg3 {[%clk 0:01:50]} 35. h6 {[%clk 0:00:17]}  f4+ {[%clk 0:01:48]} 36. Ke2 {[%clk 0:00:16]}  gxh6 {[%clk 0:01:49]} 37. Nd3 {[%clk 0:00:15]}  h5 {[%clk 0:01:48]} 38. Ne5 {[%clk 0:00:15]}  Be8 {[%clk 0:01:44]} 39. gxh5 {[%clk 0:00:14]}  Bxh5 {[%clk 0:01:44]} 40. b3 {[%clk 0:00:11]}  Be8 {[%clk 0:01:43]} 41. c4 {[%clk 0:00:09]}  h5 {[%clk 0:01:43]} 42. Nd3 {[%clk 0:00:08]}  h4 {[%clk 0:01:40]} 43. Nf2 {[%clk 0:00:04]}  h3 {[%clk 0:01:38]} 44. Kf1 {[%clk 0:00:02]}  h2 {[%clk 0:01:36]} 45. c5 {[%clk 0:00:01]}  Kxf3 {[%clk 0:01:35]} 46. b4 {[%clk 0:00:01]}  Bd7 {[%clk 0:01:31]} 0-1


[Site "https://www.chess.com"]

[Event "Titled Tuesday Blitz March 08 Early 2022"]
[White "Demin, Vladimir"]
[Black "Van Foreest, Jorden"]
[WhiteFideId "4167457"]
[BlackFideId "1039784"]
[WhiteElo "2509"]
[BlackElo "2609"]
[Result "1-0"]
[Round "01"]
[TimeControl "180+1"]
[Date "2022.03.08"]
[WhiteClock "0:00:36"]
[BlackClock "0:00:18"]

1. d4 {[%clk 0:02:54]}  e6 {[%clk 0:02:59]} 2. e4 {[%clk 0:02:53]}  d5 {[%clk 0:02:55]} 3. Bd3 {[%clk 0:02:54]}  dxe4 {[%clk 0:02:54]} 4. Bxe4 {[%clk 0:02:55]}  Nf6 {[%clk 0:02:54]} 5. Bf3 {[%clk 0:02:56]}  c5 {[%clk 0:02:52]} 6. Ne2 {[%clk 0:02:56]}  Nc6 {[%clk 0:02:51]} 7. Be3 {[%clk 0:02:56]}  Qb6 {[%clk 0:02:42]} 8. Nbc3 {[%clk 0:02:54]}  cxd4 {[%clk 0:02:27]} 9. Nxd4 {[%clk 0:02:54]}  Nxd4 {[%clk 0:02:27]} 10. Qxd4 {[%clk 0:02:53]}  Qxd4 {[%clk 0:02:23]} 11. Bxd4 {[%clk 0:02:54]}  a6 {[%clk 0:02:24]} 12. O-O-O {[%clk 0:02:31]}  Be7 {[%clk 0:02:17]} 13. Na4 {[%clk 0:02:27]}  Bd8 {[%clk 0:01:57]} 14. Nc5 {[%clk 0:02:18]}  Nd5 {[%clk 0:01:44]} 15. Bxg7 {[%clk 0:02:09]}  Rg8 {[%clk 0:01:44]} 16. Bd4 {[%clk 0:02:07]}  b6 {[%clk 0:01:41]} 17. Ne4 {[%clk 0:02:05]}  Be7 {[%clk 0:01:42]} 18. c4 {[%clk 0:01:46]}  f5 {[%clk 0:01:37]} 19. Ng3 {[%clk 0:01:31]}  Nc7 {[%clk 0:01:30]} 20. Bxb6 {[%clk 0:01:27]}  Bd7 {[%clk 0:01:15]} 21. Bxc7 {[%clk 0:01:24]}  Rc8 {[%clk 0:01:15]} 22. Bd6 {[%clk 0:01:18]}  Rxc4+ {[%clk 0:01:15]} 23. Kb1 {[%clk 0:01:18]}  Bf6 {[%clk 0:01:15]} 24. Bh5+ {[%clk 0:01:16]}  Kd8 {[%clk 0:01:14]} 25. Rhe1 {[%clk 0:01:12]}  Kc8 {[%clk 0:01:06]} 26. Be2 {[%clk 0:01:09]}  Rc6 {[%clk 0:01:05]} 27. Bf3 {[%clk 0:01:08]}  Rc4 {[%clk 0:01:01]} 28. Be5 {[%clk 0:01:07]}  Bxe5 {[%clk 0:00:59]} 29. Rxe5 {[%clk 0:01:07]}  Kc7 {[%clk 0:00:54]} 30. Ne2 {[%clk 0:01:00]}  Rb8 {[%clk 0:00:48]} 31. Nc1 {[%clk 0:01:00]}  Rb5 {[%clk 0:00:27]} 32. Rxb5 {[%clk 0:00:55]}  Bxb5 {[%clk 0:00:28]} 33. Be2 {[%clk 0:00:48]}  Rh4 {[%clk 0:00:24]} 34. Bxb5 {[%clk 0:00:48]}  axb5 {[%clk 0:00:25]} 35. h3 {[%clk 0:00:48]}  Rh6 {[%clk 0:00:21]} 36. Nd3 {[%clk 0:00:46]}  Rg6 {[%clk 0:00:22]} 37. g3 {[%clk 0:00:46]}  Rg7 {[%clk 0:00:21]} 38. Ne5 {[%clk 0:00:46]}  Rg8 {[%clk 0:00:17]} 39. b3 {[%clk 0:00:46]}  Kb6 {[%clk 0:00:15]} 40. b4 {[%clk 0:00:45]}  Ra8 {[%clk 0:00:15]} 41. Kb2 {[%clk 0:00:45]}  h5 {[%clk 0:00:14]} 42. Rd6+ {[%clk 0:00:44]}  Kc7 {[%clk 0:00:14]} 43. Rxe6 {[%clk 0:00:44]}  h4 {[%clk 0:00:14]} 44. gxh4 {[%clk 0:00:41]}  Rh8 {[%clk 0:00:15]} 45. Ng6 {[%clk 0:00:41]}  Rd8 {[%clk 0:00:15]} 46. h5 {[%clk 0:00:40]}  Rd2+ {[%clk 0:00:16]} 47. Kc3 {[%clk 0:00:40]}  Rxf2 {[%clk 0:00:17]} 48. h6 {[%clk 0:00:40]}  Rf3+ {[%clk 0:00:17]} 49. Kd4 {[%clk 0:00:40]}  Rxh3 {[%clk 0:00:18]} 50. Ne5 {[%clk 0:00:40]}  Rh4+ {[%clk 0:00:17]} 51. Kc5 {[%clk 0:00:39]}  f4 {[%clk 0:00:17]} 52. Re7+ {[%clk 0:00:38]}  Kd8 {[%clk 0:00:18]} 53. Nc6+ {[%clk 0:00:37]}  Kc8 {[%clk 0:00:18]} 54. Kb6 {[%clk 0:00:36]} 1-0


[Site "https://www.chess.com"]

[Event "Titled Tuesday Blitz March 08 Early 2022"]
[White "Durarbayli, Vasif"]
[Black "Golizadeh, Asghar"]
[WhiteFideId "13402935"]
[BlackFideId "12505269"]
[WhiteElo "2528"]
[BlackElo "2403"]
[Result "1-0"]
[Round "01"]
[TimeControl "180+1"]
[Date "2022.03.09"]
[WhiteClock "0:01:14"]
[BlackClock "0:00:34"]

1. d4 {[%clk 0:03:00]}  Nf6 {[%clk 0:02:59]} 2. c4 {[%clk 0:03:00]}  e6 {[%clk 0:02:59]} 3. Nc3 {[%clk 0:03:00]}  Bb4 {[%clk 0:02:59]} 4. f3 {[%clk 0:03:01]}  d5 {[%clk 0:02:57]} 5. a3 {[%clk 0:03:01]}  Be7 {[%clk 0:02:56]} 6. e4 {[%clk 0:02:58]}  dxe4 {[%clk 0:02:57]} 7. fxe4 {[%clk 0:02:58]}  e5 {[%clk 0:02:57]} 8. d5 {[%clk 0:02:58]}  Bc5 {[%clk 0:02:57]} 9. Bg5 {[%clk 0:02:39]}  h6 {[%clk 0:02:38]} 10. Bh4 {[%clk 0:02:36]}  Bd4 {[%clk 0:02:08]} 11. Bd3 {[%clk 0:02:27]}  a5 {[%clk 0:01:44]} 12. Nf3 {[%clk 0:02:18]}  Bg4 {[%clk 0:01:44]} 13. h3 {[%clk 0:02:09]}  Bxf3 {[%clk 0:01:43]} 14. Qxf3 {[%clk 0:02:10]}  Nbd7 {[%clk 0:01:44]} 15. Bc2 {[%clk 0:01:53]}  Qe7 {[%clk 0:01:42]} 16. O-O-O {[%clk 0:01:50]}  Ra6 {[%clk 0:01:19]} 17. Nb5 {[%clk 0:01:47]}  Nc5 {[%clk 0:01:19]} 18. Nxd4 {[%clk 0:01:17]}  exd4 {[%clk 0:01:20]} 19. e5 {[%clk 0:01:18]}  g5 {[%clk 0:00:43]} 20. Bf2 {[%clk 0:01:16]}  Nfd7 {[%clk 0:00:35]} 21. Bxd4 {[%clk 0:01:16]}  Nxe5 {[%clk 0:00:34]} 22. Bxe5 {[%clk 0:01:14]} 1-0


[Site "https://www.chess.com"]

[Event "Titled Tuesday Blitz March 08 Early 2022"]
[White "Einarsson, Halldor Gretar"]
[Black "Kim, Sergey"]
[WhiteFideId "2300150"]
[BlackFideId "13700570"]
[WhiteElo "2114"]
[BlackElo "2558"]
[Result "0-1"]
[Round "01"]
[TimeControl "180+1"]
[Date "2022.03.09"]
[WhiteClock "0:00:01"]
[BlackClock "0:01:59"]

1. d4 {[%clk 0:02:57]}  Nf6 {[%clk 0:02:59]} 2. c4 {[%clk 0:02:54]}  g6 {[%clk 0:02:58]} 3. f3 {[%clk 0:02:50]}  d6 {[%clk 0:02:59]} 4. e4 {[%clk 0:02:49]}  Bg7 {[%clk 0:02:59]} 5. Nc3 {[%clk 0:02:48]}  O-O {[%clk 0:02:58]} 6. Be3 {[%clk 0:02:48]}  Nc6 {[%clk 0:02:58]} 7. Qd2 {[%clk 0:02:47]}  a6 {[%clk 0:02:58]} 8. Nge2 {[%clk 0:02:37]}  Rb8 {[%clk 0:02:58]} 9. Rc1 {[%clk 0:02:36]}  e5 {[%clk 0:02:57]} 10. d5 {[%clk 0:02:11]}  Ne7 {[%clk 0:02:57]} 11. g3 {[%clk 0:01:58]}  c5 {[%clk 0:02:56]} 12. dxc6 {[%clk 0:01:47]}  bxc6 {[%clk 0:02:55]} 13. Bg2 {[%clk 0:01:39]}  d5 {[%clk 0:02:54]} 14. cxd5 {[%clk 0:01:23]}  cxd5 {[%clk 0:02:55]} 15. exd5 {[%clk 0:01:22]}  Nexd5 {[%clk 0:02:54]} 16. Rd1 {[%clk 0:01:09]}  Be6 {[%clk 0:02:50]} 17. Bc5 {[%clk 0:01:07]}  Re8 {[%clk 0:02:41]} 18. O-O {[%clk 0:01:00]}  Qc7 {[%clk 0:02:36]} 19. Bf2 {[%clk 0:00:42]}  Red8 {[%clk 0:02:35]} 20. Qc1 {[%clk 0:00:37]}  Nxc3 {[%clk 0:02:22]} 21. Nxc3 {[%clk 0:00:35]}  Nd5 {[%clk 0:02:16]} 22. Nxd5 {[%clk 0:00:22]}  Qxc1 {[%clk 0:02:15]} 23. Ne7+ {[%clk 0:00:20]}  Kf8 {[%clk 0:02:15]} 24. Rxc1 {[%clk 0:00:20]}  Kxe7 {[%clk 0:02:15]} 25. Bc5+ {[%clk 0:00:18]}  Ke8 {[%clk 0:02:12]} 26. f4 {[%clk 0:00:15]}  Rdc8 {[%clk 0:02:04]} 27. b4 {[%clk 0:00:01]}  exf4 {[%clk 0:01:59]} 0-1


[Site "https://www.chess.com"]